[Event "78th GEO-ch 2019"]
[Site "Tbilisi"]
[Date "2019.02.10"]
[Round "2.2"]
[White "Arutinian, David"]
[Black "Shanava, Konstantine"]
[Result "1/2-1/2"]
[ECO "A41"]
[WhiteElo "2552"]
[BlackElo "2516"]
[Annotator "ChessBase"]
[PlyCount "45"]
[EventDate "2019.02.06"]
[EventType "k.o."]
[EventCountry "GEO"]
[SourceTitle "playchess.com"]
[Source "ChessBase"]
[SourceQuality "1"]
[TimeControl "40/5400+30:1800+30"]

1. d4 {[%emt 0:01:38]} d6 {[%emt 0:00:00]} 2. e4 {[%emt 0:00:23]} Nf6 {[%emt 0:01:50]} 3. f3 {[%emt 0:00:24]} e5 {[%emt 0:00:18]} 4. d5 {[%emt 0:01:10]} Be7 {[%emt 0:00:05]} 5. Be3 {[%emt 0:01:14]} Nfd7 {[%emt 0:06:49]} 6. Qd2 {[%emt 0:02:49]} h6 {[%emt 0:00:22]} 7. Nc3 {[%emt 0:02:52]} Bg5 {[%emt 0:01:03]} 8. Nge2 {[%emt 0:01:42]} Nb6 {[%emt 0:08:34]} 9. Ng3 {[%emt 0:03:39]} a5 {[%emt 0:01:57]} 10. O-O-O {[%emt 0:04:42]} Bxe3 {[%emt 0:00:58]} 11. Qxe3 {[%emt 0:00:14]} Qg5 {[%emt 0:00:04]} 12. Bb5+ {[%emt 0:04:51]} Ke7 {[%emt 0:04:06]} 13. Qd2 {[%emt 0:04:59]} g6 {[%emt 0:00:33]} 14. Nf1 {[%emt 0:02:57]} Qxd2+ {[%emt 0:00:11]} 15. Rxd2 {[%emt 0:00:10]} c6 {[%emt 0:00:40]} 16. Be2 {[%emt 0:01:57]} cxd5 {[%emt 0:00:52]} 17. Nxd5+ {[%emt 0:00:21]} Nxd5 {[%emt 0:00:05]} 18. Rxd5 {[%emt 0:00:16]} Be6 {[%emt 0:00:12]} 19. Rb5 {[%emt 0:01:33]} Ra7 {[%emt 0:00:16]} 20. Ne3 {[%emt 0:01:21]} Rc8 {[%emt 0:01:33]} 21. Kb1 {[%emt 0:02:12]} Nd7 {[%emt 0:02:07]} 22. Rd1 {[%emt 0:01:30]} Rc5 {[%emt 0:00:22]} 23. Rxc5 {[%emt 0:01:36]} 1/2-1/2

[Event "78th GEO-ch 2019"]
[Site "Tbilisi"]
[Date "2019.02.10"]
[Round "2.2"]
[White "Maghalashvili, Davit"]
[Black "Paichadze, Luka"]
[Result "1/2-1/2"]
[ECO "A14"]
[WhiteElo "2504"]
[BlackElo "2580"]
[Annotator "ChessBase"]
[PlyCount "111"]
[EventDate "2019.02.06"]
[EventType "k.o."]
[EventCountry "GEO"]
[SourceTitle "playchess.com"]
[Source "ChessBase"]
[SourceQuality "1"]
[TimeControl "40/5400+30:1800+30"]

1. Nf3 {[%emt 0:00:42]} Nf6 {[%emt 0:00:00]} 2. c4 {[%emt 0:00:06]} e6 {[%emt 0:00:00]} 3. g3 {[%emt 0:00:06]} d5 {[%emt 0:00:42]} 4. Bg2 {[%emt 0:00:15]} Be7 {[%emt 0:00:10]} 5. O-O {[%emt 0:01:26]} O-O {[%emt 0:00:05]} 6. d4 {[%emt 0:01:42]} c6 {[%emt 0:00:07]} 7. b3 {[%emt 0:01:30]} b6 {[%emt 0:01:10]} 8. Bb2 {[%emt 0:00:22]} Bb7 {[%emt 0:01:01]} 9. Nc3 {[%emt 0:04:37]} Nbd7 {[%emt 0:03:58]} 10. Qc2 {[%emt 0:00:57]} Rc8 {[%emt 0:01:12]} 11. e4 {[%emt 0:00:51]} dxe4 {[%emt 0:01:34]} 12. Nxe4 {[%emt 0:08:15]} Nxe4 {[%emt 0:00:07]} 13. Qxe4 {[%emt 0:00:04]} Qc7 {[%emt 0:02:01]} 14. Rfe1 {[%emt 0:03:38]} c5 {[%emt 0:06:13]} 15. Qe2 {[%emt 0:05:43]} Bf6 {[%emt 0:01:17]} 16. Rad1 {[%emt 0:01:37]} Rfd8 {[%emt 0:05:19]} 17. d5 {[%emt 0:04:40]} exd5 {[%emt 0:01:14]} 18. cxd5 {[%emt 0:00:10]} Bxb2 {[%emt 0:04:19]} 19. d6 {[%emt 0:02:51]} Qb8 {[%emt 0:00:05]} 20. Qxb2 {[%emt 0:00:07]} Nf6 {[%emt 0:04:20]} 21. Re7 {[%emt 0:12:15]} Bxf3 {[%emt 0:16:29]} 22. Bxf3 {[%emt 0:00:05]} Rxd6 {[%emt 0:00:06]} 23. Rxd6 {[%emt 0:01:10]} Qxd6 {[%emt 0:00:03]} 24. Rxa7 {[%emt 0:00:07]} Re8 {[%emt 0:02:44]} 25. Qc3 {[%emt 0:07:45]} Nd7 {[%emt 0:04:39]} 26. Kg2 {[%emt 0:07:36]} Ne5 {[%emt 0:00:32]} 27. Qe3 {[%emt 0:00:29]} g6 {[%emt 0:10:48]} 28. Qe4 {[%emt 0:08:39]} Re7 {[%emt 0:07:06]} 29. Rxe7 {[%emt 0:03:57]} Qxe7 {[%emt 0:00:04]} 30. Be2 {[%emt 0:00:10]} Qd6 {[%emt 0:04:06]} 31. f4 {[%emt 0:00:53]} Nc6 {[%emt 0:00:18]} 32. Bc4 {[%emt 0:00:43]} Kg7 {[%emt 0:01:15]} 33. Qe8 {[%emt 0:03:00]} Nd8 {[%emt 0:00:15]} 34. Qe2 {[%emt 0:04:16]} Nc6 {[%emt 0:00:21]} 35. Qe4 {[%emt 0:01:41]} Nd4 {[%emt 0:01:28]} 36. Kf2 {[%emt 0:01:08]} Nf5 {[%emt 0:05:25]} 37. Qe5+ {[%emt 0:02:43]} f6 {[%emt 0:01:00]} 38. Qxd6 {[%emt 0:05:35]} Nxd6 {[%emt 0:00:04]} 39. Be6 {[%emt 0:00:56]} g5 {[%emt 0:01:15]} 40. Ke3 {[%emt 0:00:00]} Kf8 {[%emt 0:00:00]} 41. fxg5 {[%emt 0:02:26]} fxg5 {[%emt 0:01:22]} 42. b4 {[%emt 0:00:28]} cxb4 {[%emt 0:01:00]} 43. Kd4 {[%emt 0:00:10]} Ke7 {[%emt 0:02:31]} 44. Bg8 {[%emt 0:05:55]} h6 {[%emt 0:00:13]} 45. Ke5 {[%emt 0:00:29]} Nb5 {[%emt 0:01:32]} 46. Bc4 {[%emt 0:03:15]} Nd6 {[%emt 0:00:43]} 47. Bd3 {[%emt 0:00:29]} Nb7 {[%emt 0:00:49]} 48. Bc4 {[%emt 0:02:27]} Nd6 {[%emt 0:00:56]} 49. Bb3 {[%emt 0:01:43]} Ne8 {[%emt 0:04:40]} 50. Bd1 {[%emt 0:08:20]} Nd6 {[%emt 0:00:38]} 51. Be2 {[%emt 0:00:18]} Nb7 {[%emt 0:00:40]} 52. Kf5 {[%emt 0:05:05]} Na5 {[%emt 0:00:06]} 53. Bd1 {[%emt 0:00:31]} Nc4 {[%emt 0:00:13]} 54. Kg6 {[%emt 0:00:50]} Nd2 {[%emt 0:02:14]} 55. Be2 {[%emt 0:00:41]} b3 {[%emt 0:00:38]} 56. axb3 1/2-1/2